{"text_format":"1","workbook":"xlsx","n_sheets":4,"sheets":["Liste d'achat","Estimation Électros","Comparatif des fournisseurs","Tableaux déroulants"],"not_rendered":{"charts":0,"images":30,"macros":0,"external_links":0,"defined_names":11,"comments":0,"pivot_tables":0},"unopened":[],"bounds":{"document_bytes":16777216,"sheet_cells":100000,"rows_first":2000,"rows_last":500,"rows_between":2000,"halvings":0,"cell_chars":16384,"cell_head_chars":4096},"cells_cut":0,"cells_raw":0,"read":"whole","date_system":"1900"}

{"sheet":"Liste d'achat","index":0,"n_rows":135,"n_cols":11,"rows_kept":135,"cut":false,"hidden":false,"merged":[[133,0,133,1]]}
["Catégorie","Item et description","Local","Ordre de priorité","Marque et modèle","Dimensions (L-P-H)","Garantie","Quantité","Prix unitaire hors txs","Total","Fournisseur"]
["Cuisine et buanderie"]
["Équipement de conservation","Frigo double coulissante","Cuisine","1- Indispensable","New air",null,"5 ans",1,4000,{"$f":"H3*I3","v":4000},"Doyon"]
["Équipement de conservation","Congélateur double coulissante","Cuisine","1- Indispensable",null,null,"3 ans",1,6000,{"$f":"H4*I4","v":6000},"Plurigamme"]
["Équipement de nettoyage","Laveuse industrielle (superposée)","Buanderie","1- Indispensable",null,null,null,1,1500,1500]
["Équipement de nettoyage","Sécheuse industrielle (superposée)","Buanderie","1- Indispensable",null,null,null,1,1500,1500]
["Équipement de conservation","Cuisinière 6 ronds","Cuisine","1- Indispensable",null,null,null,1,5000,5000]
["Équipement de préparation","Four convection sur échelle","Cuisine","1- Indispensable",null,null,null,1,7000,7000]
["Équipement de nettoyage","Lave-vaisselle","Cuisine","1- Indispensable",null,null,null,1,5000,5000]
["Équipement de cuisson","Chaudron","Cuisine","3- Secondaire",null,null,"vie",1,150,150,"Ikea"]
["Équipement",null,null,null,null,null,null,null,null,0]
["Équipement",null,null,null,null,null,null,null,null,0]
["Équipement",null,null,null,null,null,null,null,null,0]
["Équipement",null,null,null,null,null,null,null,null,0]
["Équipement",null,null,null,null,null,null,null,null,0]
["Matériel et mobilier de bureau"]
["Équipement","Pouf","Salle du personnel","3- Secondaire",null,null,null,1,100,{"$f":"H17*I17","v":100},"Wintergreen"]
["Équipement",null,null,null,null,null,null,null,null,{"$f":"H18*I18","v":0}]
["Équipement",null,null,null,null,null,null,null,null,0]
["Mobilier ",null,null,null,null,null,null,null,null,0]
["Mobilier ",null,null,null,null,null,null,null,null,0]
["Mobilier ",null,null,null,null,null,null,null,null,0]
["Matériel informatique"]
["Équipement","Ordinateurs portables","Autre","1- Indispensable","Lenovo mégaTOP100","18 po","1 an",3,850,{"$f":"H24*I24","v":2550},"Prime Cables"]
["Équipement","Tablette","Autre","2- Important","Samsung S28","10 po","3 mois",8,400,{"$f":"H25*I25","v":3200},"Bureau en gros"]
["Équipement","Clavier","Autre","1- Indispensable","Logi","N/A","1 mois",3,50,150,"Prime Cables"]
["Équipement","Écran","Autre","2- Important","Acer","24 po","1 mois",2,108,216,"Prime Cables"]
["Équipement",null,null,null,null,null,null,null,null,0]
["Équipement",null,null,null,null,null,null,null,null,0]
["Pouponnière- mobilier/gros équipements"]
["Gros équipement","Grand matelas gris","Autre","2- Important","N/A","6 x 4 pi","1 an",2,250,{"$f":"H31*I31","v":500},"Biggy Boom"]
["Mobilier","module en bois","Tous","2- Important","Community playthings",null,"5 ans",1,1300,1300,"Louise Kool"]
["Mobilier",null,null,null,null,null,null,null,null,0]
["Gros équipement",null,null,null,null,null,null,null,null,0]
["Mobilier",null,null,null,null,null,null,null,null,0]
["Équipement",null,null,null,null,null,null,null,null,0]
["Équipement",null,null,null,null,null,null,null,null,0]
["Équipement",null,null,null,null,null,null,null,null,0]
["Équipement",null,null,null,null,null,null,null,null,0]
["Aire de jeu - mobilier/gros équipements"]
["Gros équipement","table 8 places/ local des 4 ans","Groupe 8",null,"sur mesure en merisier","200cm-60cm-60cm","à vie",2,300,{"$f":"H41*I41","v":600},"Boulot vers"]
["Gros équipement","Matelas sieste","Tous",null,"mousse haute densité",null,null,60,40,{"$f":"H42*I42","v":2400}]
["Mobilier ",null,null,null,null,null,null,null,null,0]
["Mobilier",null,null,null,null,null,null,null,null,0]
["Mobilier",null,null,null,null,null,null,null,null,0]
["Mobilier",null,null,null,null,null,null,null,null,0]
["Mobilier",null,null,null,null,null,null,null,null,0]
["Mobilier",null,null,null,null,null,null,null,null,0]
["Mobilier",null,null,null,null,null,null,null,null,0]
["Mobilier",null,null,null,null,null,null,null,null,{"$f":"H50*I50","v":0}]
["Mobilier",null,null,null,null,null,null,null,null,0]
["Pouponnière - matériel"]
["Dév. social et affectif","Poupées ","Tous","1- Indispensable",null,"Grande","1 an",20,30,{"$f":"H53*I53","v":600},"Spectrum-Nasco"]
["Dév. physique et moteur",null,"Poup 1",null,null,null,null,null,null,{"$f":"H54*I54","v":0},"BB"]
["Dév. social et affectif",null,"Poup 1",null,null,null,null,null,null,{"$f":"H55*I55","v":0},"BB"]
["Dév. langagier",null,"Poup 2",null,null,null,null,null,null,{"$f":"H56*I56","v":0},"BB"]
["Dév. physique et moteur",null,"Poup 3",null,null,null,null,null,null,{"$f":"H57*I57","v":0},"BB"]
["Dév. langagier",null,null,null,null,null,null,null,null,{"$f":"H58*I58","v":0}]
["Dév. langagier",null,null,null,null,null,null,null,null,0]
["Dév. langagier",null,null,null,null,null,null,null,null,0]
["Dév. langagier",null,null,null,null,null,null,null,null,0]
["Dév. cognitif",null,null,null,null,null,null,null,null,{"$f":"H62*I62","v":0}]
["Dév. cognitif",null,null,null,null,null,null,null,null,0]
["Dév. cognitif",null,null,null,null,null,null,null,null,0]
["Dév. cognitif",null,null,null,null,null,null,null,null,0]
["Dév. cognitif",null,null,null,null,null,null,null,null,0]
["Dév. social et affectif",null,null,null,null,null,null,null,null,0]
["Dév. social et affectif",null,null,null,null,null,null,null,null,0]
["Dév. social et affectif",null,null,null,null,null,null,null,null,0]
["Dév. social et affectif",null,null,null,null,null,null,null,null,0]
["Aire de jeu - matériel"]
["Dév. physique et moteur","Cerceaux","Salle multi","2- Important",null,"Grand",null,12,8,{"$f":"H72*I72","v":96},"FDMT"]
["Dév. physique et moteur",null,null,null,null,null,null,null,null,{"$f":"H73*I73","v":0}]
["Dév. physique et moteur",null,null,null,null,null,null,null,null,0]
["Autre",null,null,null,null,null,null,null,null,0]
[null,null,null,null,null,null,null,null,null,0]
[null,null,null,null,null,null,null,null,null,0]
[null,null,null,null,null,null,null,null,null,0]
[null,null,null,null,null,null,null,null,null,0]
[null,null,null,null,null,null,null,null,null,0]
[null,null,null,null,null,null,null,null,null,0]
[null,null,null,null,null,null,null,null,null,0]
[null,null,null,null,null,null,null,null,null,0]
[null,null,null,null,null,null,null,null,null,0]
[null,null,null,null,null,null,null,null,null,0]
[null,null,null,null,null,null,null,null,null,0]
[null,null,null,null,null,null,null,null,null,0]
[null,null,null,null,null,null,null,null,null,0]
[null,null,null,null,null,null,null,null,null,0]
[null,null,null,null,null,null,null,null,null,0]
[null,null,null,null,null,null,null,null,null,0]
[null,null,null,null,null,null,null,null,null,0]
[null,null,null,null,null,null,null,null,null,0]
[null,null,null,null,null,null,null,null,null,0]
[null,null,null,null,null,null,null,null,null,0]
[null,null,null,null,null,null,null,null,null,0]
[null,null,null,null,null,null,null,null,null,0]
[null,null,null,null,null,null,null,null,null,0]
[null,null,null,null,null,null,null,null,null,0]
[null,null,null,null,null,null,null,null,null,0]
[null,null,null,null,null,null,null,null,null,0]
[null,null,null,null,null,null,null,null,null,0]
[null,null,null,null,null,null,null,null,null,0]
[null,null,null,null,null,null,null,null,null,0]
[null,null,null,null,null,null,null,null,null,0]
[null,null,null,null,null,null,null,null,null,0]
[]
[]
[null,null,null,null,null,null,null,null,null,0]
[null,null,null,null,null,null,null,null,null,0]
[null,null,null,null,null,null,null,null,null,0]
[null,null,null,null,null,null,null,null,null,0]
[null,null,null,null,null,null,null,null,null,0]
[null,null,null,null,null,null,null,null,null,0]
[null,null,null,null,null,null,null,null,null,0]
[null,null,null,null,null,null,null,null,null,0]
[null,null,null,null,null,null,null,null,null,0]
[null,null,null,null,null,null,null,null,null,0]
[null,null,null,null,null,null,null,null,null,0]
[null,null,null,null,null,null,null,null,null,0]
["Matériel de soins et lingerie"]
["Équipement","Débarbouillette pqt de 20","Autre","1- Indispensable",null,null,null,6,28,{"$f":"H122*I122","v":168},"Guylaine Beaucage"]
["Équipement","Bavoir","Autre","1- Indispensable",null,null,null,8,25,{"$f":"H123*I123","v":200},"Éclipse"]
["Équipement","Serpentain -ajustable 4 À 10 places","Autre","2- Important",null,null,"1 mois",3,50,150,"Brault et Bouthillier"]
["Équipement","Trousse de 1er soins (grande conforme)","Autre","1- Indispensable",null,"Grandes trousses",null,2,55,110,"Biggy Boom"]
["Équipement","Sac à dos","Autre","2- Important",null,null,null,10,40,400,"Dernière chasse"]
["Équipement","Trousse 1er soin portables","Autre","1- Indispensable",null,"portable à la taille",null,6,18,108,"Biggy Boom"]
["Équipement",null,null,null,null,null,null,null,null,0]
[]
["Total dépenses avant taxes ",null,null,null,null,null,null,null,null,{"$f":"SUBTOTAL(9,J2:J128)","v":42998}]
["TPS",null,null,null,null,null,null,null,null,{"$f":"J130*0.05","v":2149.9}]
["TVQ",null,null,null,null,null,null,null,null,{"$f":"J130*0.0975","v":4192.3050000000003}]
["Total dépenses avec 50% des taxes",null,null,null,null,null,null,null,null,{"$f":"J130+((J131+J132)/2)","v":46169.102500000001}]
["Montant disponible incluant 50% des taxes (PFI) ",null,null,null,null,null,null,null,null,128619]
["Différence",null,null,null,null,null,null,null,null,{"$f":"J134-J133","v":82449.897499999992}]

{"sheet":"Estimation Électros","index":1,"n_rows":30,"n_cols":8,"rows_kept":30,"cut":false,"hidden":false,"merged":[]}
[null,"Marque","Modèle","Largeur","Profondeur","Hauteur","Image "]
["Congélo simple vitrée battante","New Air","NGF-054-H","27\"","32.5\"","81\"",null,4000]
["Congélo simple vitrée battante","Kool-it","KGF-23","26,8\"","33,5\"","80,1\"",null,3500]
["Congélateur simple battante pleine","New Air","NSF-050-H","27,5\"","32,5\"","82\"",null,3500]
["Congélo double battante vitrée","New Air","NGF-122-H","54.5\"","33\"","78.5\"",null,6000]
["Congélo double battante vitrée","Kool-it","KGF-48","53,9\"","33,5\"","52,7\"",null,5000]
["Congélo double battante pleine","Atosa","MBF-8503","54,5\"","32\"","83,5\"",null,5000]
["Congélateur double battante pleine","New Air","NSF-115-H ","54,5\"","32,5\"","82\"",null,6000]
["Congélateur double battante pleine","IKON","IBF54F","53,9\"","32,7\"","82,3\"",null,4000]
["Frigo simple battante vitrée","New Air","NGR-068-H","30\" ","32\"","79\"",null,3000]
["Frigo simple battante vitrée","Kool-it","KGM-23","27,6\"","31,1\"","80,9\"",null,2500]
["Frigo simple battante pleine","New Air","NSR-050-H","27,5\"","32,5\"","82\"",null,3000]
["Frigo double coulissante vitrée","Kool-it","KMS-40","47,5\"","30,7\"","75\"",null,3000]
["Frigo double coulissante vitrée","New Air","NGR-115-S","55\" ","31.5\"","79\"",null,4000]
["Frigo double battante pleine","New Air","NSR-115-H","54,5\"","32,5\"","82\"",null,5000]
["Frigo double battante pleine","Atosa","MBF-8507","55\"","32\"","83,5\"",null,4000]
["Cuisinière 4 ronds","Royal Series","RRE4","24\"","36\"","57\"",null,5500]
["Cuisinière 6 ronds","Royal Series","RRE6","36\"","36\"",57,null,"4000$-6000$"]
["Four convection\ncompact","Eurodib","XAF023","24,8\"","23,6\"","18,6\"",null,4500]
["Four \nconvection","Royal series","RECO-1","34\"","62\"","38\"",null,4500]
["Four convection\nsur échelle","Turbofan","E32D5 ON THE SK32 STAND","29\"","32\"","64\"",null,7000]
["plaque induction","Eurodib","IHE3097-P2",null,null,null,null,270]
["Mélangeur \n5 Pintes","Globe Canada","SP5-Q",null,null,null,null,1250]
["Mélangeur \n20 Pintes","Globe Canada","SPC-20",null,null,null,null,4000]
["Lave-vaisselle","Lamber Eurodib","F92EKDPS","24\"","41\" porte ouverte ","33\" à mettre sur socle",null,5000]
["Lave-vaisselle","Moyer Diebel","Nexus 900","24\"","40,5\" porte ouverte","34\" à mettre sur socle",null,4500]
["Base ergo pour\nlave-vaisselle","Lamber Eurodib","AC00005D\nporte avant, 3 côtés fermés","23,75\"","23,75\"","22\"",null,"1000-1500$"]
["Laveuse-sécheuse superposées","Huebsch\nCommercial","YTEE5ASP173TW01","27\"","28\"","78,5\"",null,3500]
["Laveuse","Huebsch\nRésidentiel durable","TC5102WN",26,28,43,null,1500]
["Sécheuse","Huebsch\nRésidentiel durable","DC5102WE",26,28,43,null,1500]

{"sheet":"Comparatif des fournisseurs","index":2,"n_rows":151,"n_cols":11,"rows_kept":151,"cut":false,"hidden":false,"merged":[[49,0,49,10],[2,3,2,4],[2,5,2,6],[2,7,2,8],[2,9,2,10],[30,3,30,4],[30,5,30,6],[30,7,30,8],[30,9,30,10],[40,3,40,4],[40,5,40,6],[40,7,40,8],[40,9,40,10],[39,0,39,10],[1,0,1,10],[29,0,29,10],[19,0,19,10],[20,3,20,4],[20,5,20,6],[20,7,20,8],[20,9,20,10],[50,3,50,4],[50,5,50,6],[50,7,50,8],[50,9,50,10],[64,3,64,4],[64,5,64,6],[64,7,64,8],[64,9,64,10],[63,0,63,10],[100,3,100,4],[100,5,100,6],[100,7,100,8],[100,9,100,10],[99,0,99,10],[144,3,144,4],[144,5,144,6],[144,7,144,8],[144,9,144,10],[143,0,143,10]]}
["Catégorie","Item","Quantité","prix unitaire hors txs.","Total","prix unitaire hors txs.","Total","prix unitaire hors txs.","Total","prix unitaire hors txs.","Total"]
["Cuisine et buanderie"]
[null,null,null,"Fournisseur 1",null,"Fournisseur 2",null,"Fournisseur 3",null,"Fournisseur 4"]
["Équipement de conservation","congélo simple",2,2020.5,{"$f":"C4*D4","v":4041},1850,{"$f":"C4*F4","v":3700},3000.5,{"$f":"C4*H4","v":6001},null,{"$f":"C4*J4","v":0}]
["Équipement de conservation","frigo double",1,2500,{"$f":"C5*D5","v":2500},null,{"$f":"C5*F5","v":0},null,{"$f":"C5*H5","v":0},null,{"$f":"C5*J5","v":0}]
["Équipement de nettoyage","lave-vaiselle",1,1300,1300,null,0,null,0,null,0]
["Petit équipement",null,null,null,0,null,0,null,0,null,0]
["Équipement",null,null,null,0,null,0,null,0,null,0]
["Équipement",null,null,null,0,null,0,null,0,null,0]
["Équipement",null,null,null,0,null,0,null,0,null,0]
["Équipement",null,null,null,0,null,0,null,0,null,0]
["Équipement",null,null,null,0,null,0,null,0,null,0]
["Équipement",null,null,null,{"$f":"C13*D13","v":0},null,{"$f":"C13*F13","v":0},null,{"$f":"C13*H13","v":0},null,{"$f":"C13*J13","v":0}]
["Équipement",null,null,null,0,null,0,null,0,null,0]
["Équipement",null,null,null,0,null,0,null,0,null,0]
["Équipement",null,null,null,0,null,0,null,0,null,0]
["Équipement",null,null,null,0,null,0,null,0,null,0]
["TOTAL",null,null,null,{"$f":"SUM(E4:E17)","v":7841},null,{"$f":"SUM(G4:G17)","v":3700},null,{"$f":"SUM(I4:I17)","v":6001},null,{"$f":"SUM(K4:K17)","v":0}]
[]
["Matériel et mobilier de bureau"]
[null,null,null,"Fournisseur 1",null,"Fournisseur 2",null,"Fournisseur 3",null,"Fournisseur 4"]
["Mobilier ","Chaise ordi ergo",4,150,{"$f":"C22*D22","v":600},129.99,{"$f":"C22*F22","v":519.96},210,{"$f":"C22*H22","v":840},null,{"$f":"C22*J22","v":0}]
["Équipement",null,null,null,{"$f":"C23*D23","v":0},null,{"$f":"C23*F23","v":0},null,{"$f":"C23*H23","v":0},null,0]
["Équipement",null,null,null,0,null,0,null,0,null,0]
["Mobilier ",null,null,null,{"$f":"C25*D25","v":0},null,0,null,0,null,0]
["Équipement",null,null,null,{"$f":"C26*D26","v":0},null,{"$f":"C26*F26","v":0},null,{"$f":"C26*H26","v":0},null,{"$f":"C26*J26","v":0}]
["Équipement",null,null,null,0,null,0,null,0,null,0]
["TOTAL",null,null,null,{"$f":"SUM(E22:E27)","v":600},null,{"$f":"SUM(G22:G27)","v":519.96},null,{"$f":"SUM(I22:I27)","v":840},null,{"$f":"SUM(K22:K27)","v":0}]
[]
["Matériel informatique"]
[null,null,null,"Fournisseur 1",null,"Fournisseur 2",null,"Fournisseur 3",null,"Fournisseur 4"]
["Mobilier",null,null,null,{"$f":"C32*D32","v":0},null,{"$f":"C32*F32","v":0},null,{"$f":"C32*H32","v":0},null,{"$f":"C32*J32","v":0}]
["Mobilier",null,null,null,{"$f":"C33*D33","v":0},null,{"$f":"C33*F33","v":0},null,{"$f":"C33*H33","v":0},null,{"$f":"C33*J33","v":0}]
["Mobilier",null,null,null,0,null,0,null,0,null,0]
["Équipement",null,null,null,0,null,0,null,0,null,0]
["Équipement",null,null,null,0,null,0,null,0,null,0]
["Équipement",null,null,null,0,null,0,null,0,null,0]
["TOTAL",null,null,null,{"$f":"SUM(E32:E37)","v":0},null,{"$f":"SUM(G32:G37)","v":0},null,{"$f":"SUM(I32:I37)","v":0},null,{"$f":"SUM(K32:K37)","v":0}]
[]
["Pouponnière - mobilier"]
[null,null,null,"Fournisseur 1",null,"Fournisseur 2",null,"Fournisseur 3",null,"Fournisseur 4"]
["Mobilier",null,null,null,{"$f":"C42*D42","v":0},null,{"$f":"C42*F42","v":0},null,{"$f":"C42*H42","v":0},null,{"$f":"C42*J42","v":0}]
["Mobilier",null,null,null,{"$f":"C43*D43","v":0},null,{"$f":"C43*F43","v":0},null,{"$f":"C43*H43","v":0},null,{"$f":"C43*J43","v":0}]
["Mobilier",null,null,null,0,null,0,null,0,null,0]
["Mobilier",null,null,null,0,null,0,null,0,null,0]
["Mobilier",null,null,null,0,null,0,null,0,null,0]
["Mobilier",null,null,null,0,null,0,null,0,null,0]
["TOTAL",null,null,null,{"$f":"SUM(E42:E47)","v":0},null,{"$f":"SUM(G42:G47)","v":0},null,{"$f":"SUM(I42:I47)","v":0},null,{"$f":"SUM(K42:K47)","v":0}]
[]
["Aire de jeu - mobilier"]
[null,null,null,"Fournisseur 1",null,"Fournisseur 2",null,"Fournisseur 3",null,"Fournisseur 4"]
["Mobilier","Table lumineuse",1,1600,{"$f":"C52*D52","v":1600},null,{"$f":"C52*F52","v":0},null,{"$f":"C52*H52","v":0},null,{"$f":"C52*J52","v":0}]
["Mobilier",null,null,null,{"$f":"C53*D53","v":0},null,{"$f":"C53*F53","v":0},null,{"$f":"C53*H53","v":0},null,{"$f":"C53*J53","v":0}]
["Mobilier",null,null,null,0,null,0,null,0,null,0]
["Mobilier",null,null,null,0,null,0,null,0,null,0]
["Mobilier",null,null,null,0,null,0,null,0,null,0]
["Mobilier",null,null,null,0,null,0,null,0,null,0]
["Mobilier",null,null,null,0,null,0,null,0,null,0]
["Mobilier",null,null,null,0,null,0,null,0,null,0]
["Mobilier",null,null,null,{"$f":"C60*D60","v":0},null,{"$f":"C60*F60","v":0},null,{"$f":"C60*H60","v":0},null,{"$f":"C60*J60","v":0}]
["Mobilier",null,null,null,0,null,0,null,0,null,0]
["TOTAL",null,null,null,{"$f":"SUM(E52:E61)","v":1600},null,{"$f":"SUM(G52:G61)","v":0},null,{"$f":"SUM(I52:I61)","v":0},null,{"$f":"SUM(K52:K61)","v":0}]
[]
["Pouponnière - matériel"]
[null,null,null,"Fournisseur 1",null,"Fournisseur 2",null,"Fournisseur 3",null,"Fournisseur 4"]
["Dév physique et moteur","module EN BOIS",1,1800,{"$f":"C66*D66","v":1800},null,{"$f":"C66*F66","v":0},null,{"$f":"C66*H66","v":0},null,{"$f":"C66*J66","v":0}]
["Dév physique et moteur",null,null,null,{"$f":"C67*D67","v":0},null,{"$f":"C67*F67","v":0},null,{"$f":"C67*H67","v":0},null,{"$f":"C67*J67","v":0}]
["Dév physique et moteur",null,null,null,0,null,0,null,0,null,0]
["Dév physique et moteur",null,null,null,0,null,0,null,0,null,0]
["Dév physique et moteur",null,null,null,0,null,0,null,0,null,0]
["Dév physique et moteur",null,null,null,0,null,0,null,0,null,0]
["Dév physique et moteur",null,null,null,0,null,0,null,0,null,0]
["Dév. social et affectif",null,null,null,0,null,0,null,0,null,0]
["Dév social et affectif  ",null,null,null,0,null,0,null,0,null,0]
["Dév social et affectif  ",null,null,null,0,null,0,null,0,null,0]
["Dév social et affectif  ",null,null,null,0,null,0,null,0,null,0]
["Dév social et affectif  ",null,null,null,0,null,0,null,0,null,0]
["Dév social et affectif  ",null,null,null,0,null,0,null,0,null,0]
["Dév social et affectif  ",null,null,null,0,null,0,null,0,null,0]
["Dév social et affectif  ",null,null,null,0,null,0,null,0,null,0]
["Dév social et affectif  ",null,null,null,0,null,0,null,0,null,0]
["Dév cognitif",null,null,null,0,null,0,null,0,null,0]
["Dév cognitif",null,null,null,0,null,0,null,0,null,0]
["Dév cognitif",null,null,null,0,null,0,null,0,null,0]
["Dév cognitif",null,null,null,0,null,0,null,0,null,0]
["Dév cognitif",null,null,null,0,null,0,null,0,null,0]
["Dév cognitif",null,null,null,0,null,0,null,0,null,0]
["Dév cognitif",null,null,null,0,null,0,null,0,null,0]
["Dév cognitif",null,null,null,0,null,0,null,0,null,0]
["Dév langagier",null,null,null,0,null,0,null,0,null,0]
["Dév langagier",null,null,null,0,null,0,null,0,null,0]
["Dév langagier",null,null,null,0,null,0,null,0,null,0]
["Dév langagier",null,null,null,0,null,0,null,0,null,0]
["Dév langagier",null,null,null,0,null,0,null,0,null,0]
["Dév langagier",null,null,null,0,null,0,null,0,null,0]
["Autre",null,null,null,0,null,0,null,0,null,0]
["Autre",null,null,null,{"$f":"C97*D97","v":0},null,{"$f":"C97*F97","v":0},null,{"$f":"C97*H97","v":0},null,{"$f":"C97*J97","v":0}]
["TOTAL",null,null,null,{"$f":"SUM(E66:E97)","v":1800},null,{"$f":"SUM(G66:G97)","v":0},null,{"$f":"SUM(I66:I97)","v":0},null,{"$f":"SUM(K66:K97)","v":0}]
[]
["Aire de jeu - matériel"]
[null,null,null,"Fournisseur 1",null,"Fournisseur 2",null,"Fournisseur 3",null,"Fournisseur 4"]
["Dév physique et moteur",null,null,null,{"$f":"C102*D102","v":0},null,{"$f":"C102*F102","v":0},null,{"$f":"C102*H102","v":0},null,{"$f":"C102*J102","v":0}]
["Dév physique et moteur",null,null,null,0,null,0,null,0,null,0]
["Dév physique et moteur",null,null,null,0,null,0,null,0,null,0]
["Dév physique et moteur",null,null,null,0,null,0,null,0,null,0]
["Dév physique et moteur",null,null,null,0,null,0,null,0,null,0]
["Dév physique et moteur",null,null,null,0,null,0,null,0,null,0]
["Dév physique et moteur",null,null,null,0,null,0,null,0,null,0]
["Dév physique et moteur",null,null,null,0,null,0,null,0,null,0]
["Dév social et affectif  ",null,null,null,0,null,0,null,0,null,0]
["Dév social et affectif  ",null,null,null,0,null,0,null,0,null,0]
["Dév social et affectif  ",null,null,null,0,null,0,null,0,null,0]
["Dév social et affectif  ",null,null,null,0,null,0,null,0,null,0]
["Dév social et affectif  ",null,null,null,0,null,0,null,0,null,0]
["Dév social et affectif  ",null,null,null,0,null,0,null,0,null,0]
["Dév social et affectif  ",null,null,null,0,null,0,null,0,null,0]
["Dév social et affectif  ",null,null,null,0,null,0,null,0,null,0]
["Dév cognitif",null,null,null,0,null,0,null,0,null,0]
["Dév cognitif",null,null,null,0,null,0,null,0,null,0]
["Dév cognitif",null,null,null,0,null,0,null,0,null,0]
["Dév cognitif",null,null,null,0,null,0,null,0,null,0]
["Dév cognitif",null,null,null,0,null,0,null,0,null,0]
["Dév cognitif",null,null,null,0,null,0,null,0,null,0]
["Dév cognitif",null,null,null,0,null,0,null,0,null,0]
["Dév cognitif",null,null,null,0,null,0,null,0,null,0]
["Dév langagier",null,null,null,0,null,0,null,0,null,0]
["Dév langagier",null,null,null,0,null,0,null,0,null,0]
["Dév langagier",null,null,null,0,null,0,null,0,null,0]
["Dév langagier",null,null,null,{"$f":"C129*D129","v":0},null,{"$f":"C129*F129","v":0},null,{"$f":"C129*H129","v":0},null,{"$f":"C129*J129","v":0}]
["Dév langagier",null,null,null,0,null,0,null,0,null,0]
["Dév langagier",null,null,null,0,null,0,null,0,null,0]
["Dév langagier",null,null,null,0,null,0,null,0,null,0]
["Dév langagier",null,null,null,0,null,0,null,0,null,0]
["Dév langagier",null,null,null,0,null,0,null,0,null,0]
["Dév langagier",null,null,null,0,null,0,null,0,null,0]
["Dév langagier",null,null,null,0,null,0,null,0,null,0]
["Dév langagier",null,null,null,0,null,0,null,0,null,0]
["Autre",null,null,null,0,null,0,null,0,null,0]
["Autre",null,null,null,0,null,0,null,0,null,0]
["Autre",null,null,null,0,null,0,null,0,null,0]
["Autre",null,null,null,0,null,0,null,0,null,0]
["TOTAL",null,null,null,{"$f":"SUM(E102:E141)","v":0},null,{"$f":"SUM(G102:G141)","v":0},null,{"$f":"SUM(I102:I141)","v":0},null,{"$f":"SUM(K102:K141)","v":0}]
[]
["Matériel de soins et lingerie"]
["Équipement",null,null,"Fournisseur 1",null,"Fournisseur 2",null,"Fournisseur 3",null,"Fournisseur 4"]
["Équipement",null,null,null,{"$f":"C146*D146","v":0},null,{"$f":"C146*F146","v":0},null,{"$f":"C146*H146","v":0},null,{"$f":"C146*J146","v":0}]
["Équipement",null,null,null,{"$f":"C147*D147","v":0},null,{"$f":"C147*F147","v":0},null,{"$f":"C147*H147","v":0},null,{"$f":"C147*J147","v":0}]
["Équipement",null,null,null,{"$f":"C148*D148","v":0},null,{"$f":"C148*F148","v":0},null,{"$f":"C148*H148","v":0},null,{"$f":"C148*J148","v":0}]
["Équipement",null,null,null,{"$f":"C149*D149","v":0},null,{"$f":"C149*F149","v":0},null,{"$f":"C149*H149","v":0},null,{"$f":"C149*J149","v":0}]
["Équipement",null,null,null,{"$f":"C150*D150","v":0},null,{"$f":"C150*F150","v":0},null,{"$f":"C150*H150","v":0},null,{"$f":"C150*J150","v":0}]
["TOTAL",null,null,null,{"$f":"SUM(E146:E150)","v":0},null,{"$f":"SUM(G146:G150)","v":0},null,{"$f":"SUM(I146:I150)","v":0},null,{"$f":"SUM(K146:K150)","v":0}]

{"sheet":"Tableaux déroulants","index":3,"n_rows":18,"n_cols":7,"rows_kept":18,"cut":false,"hidden":true,"merged":[]}
["Équipement de conservation",null,"1- Indispensable",null,"Cuisine",null,"Poup 1"]
["Équipement de service",null,"2- Important",null,"Buanderie",null,"Poup 2"]
["Équipement de préparation",null,"3- Secondaire",null,"Conciergerie",null,"Poup 3"]
["Équipement de cuisson",null,null,null,"Autre",null,"Poup 4"]
["Équipement de nettoyage",null,null,null,null,null,"Tous"]
["Petit équipement",null,null,null,null,null,"Autre"]
[]
["Mobilier ",null,"Dév. social et affectif",null,"Bureau 1",null,"Groupe 1"]
["Équipement",null,"Dév. physique et moteur",null,"Bureau 2",null,"Groupe 2"]
[null,null,"Dév. cognitif",null,"Salle pédago",null,"Groupe 3"]
[null,null,"Dév. langagier",null,"Salle du personnel",null,"Groupe 4"]
["Mobilier ",null,"Autre",null,"Autre",null,"Groupe 5"]
["Gros équipement",null,null,null,null,null,"Groupe 6"]
[null,null,null,null,null,null,"Groupe 7"]
[null,null,null,null,null,null,"Groupe 8"]
[null,null,null,null,null,null,"Salle multi"]
[null,null,null,null,null,null,"Tous"]
[null,null,null,null,null,null,"Autre"]